{"text_format":"2","workbook":"xlsx","n_sheets":4,"sheets":["Сумм Ведом Макаенка-8","ЛокСм-1АС","ЛокСм-2 ЭС","ЛокСм-3 ГП"],"not_rendered":{"charts":0,"images":0,"macros":0,"external_links":0,"defined_names":0,"comments":0,"pivot_tables":0},"unopened":[],"bounds":{"document_bytes":16777216,"sheet_cells":100000,"run_cost":"one","rows_first":2000,"rows_last":500,"rows_between":2000,"halvings":0,"cell_chars":16384,"cell_head_chars":4096},"cells_cut":0,"cells_raw":0,"read":"whole","date_system":"1900"}

{"sheet":"Сумм Ведом Макаенка-8","index":0,"n_rows":22,"n_cols":6,"rows_kept":22,"cut":false,"hidden":false,"merged":[[11,2,11,4],[1,1,1,5],[2,1,2,5],[4,1,4,5],[5,1,5,2],[10,2,10,4],[20,2,20,3],[12,2,12,4],[13,2,13,4],[14,1,14,4],[15,1,15,4],[16,1,16,4]]}
[null,"                          "]
[null,"Суммарная ведомость объемов работ и материалов строительных работ по объекту «Строительство беседки \"Зеленый класс\" закрытого типа, расположенной на территории УО \"Республиканский центр экологии и краеведения\" г.Минск ул.Макаенка 8\""]
[]
[null,"№№ п.п.","Наименование работ","Общая ст-ть прямых затрат, валюта ___","Прочие затраты (ОХР и ОПР, прибыль), валюта ___","Общая ст-ть, валюта ___"]
[null,"Ведомости объемов работ и материалов"]
[]
[null,1,"Ведомость:  Локальная смета № 1: на Общестроительные работы (AС)",{"$f":"'ЛокСм-1АС'!F164","v":0},{"$f":"'ЛокСм-1АС'!F165","v":0},{"$f":"D7+E7","v":0}]
[null,2,"Ведомость: Локальная смета № 2 - на Электромонтажные работы (ЭС)",{"$f":"'ЛокСм-2 ЭС'!F43","v":0},{"$f":"'ЛокСм-2 ЭС'!F44","v":0},0]
[null,3,"Ведомость: Локальная смета № 3 - на Благоустройство (ГП)",{"$f":"'ЛокСм-3 ГП'!F23","v":0},{"$f":"'ЛокСм-3 ГП'!F24","v":0},{"$f":"D9+E9","v":0}]
[]
[null,null,"ИТОГО ПРЯМЫХ ЗАТРАТ (разделы 1-3)",null,null,{"$f":"SUM(D7:D9)","v":0}]
[null,null,"ПРОЧИЕ ЗАТРАТЫ (ОХР и ОПР, плановая прибыль)",null,null,{"$f":"SUM(E7:E9)","v":0}]
[null,null,"ИТОГО РАБОТ И ЗАТРАТ",null,null,{"$f":"F11+F12","v":0}]
[null,null,"Прочие расходы, отчисления и налоги, том числе: \n- отчисления на социальное страхование;\n-другие налоги и отчисления",null,null,{"$f":"'ЛокСм-1АС'!F168+'ЛокСм-2 ЭС'!F47+'ЛокСм-3 ГП'!F27","v":0}]
[null,"ВСЕГО РАБОТ и ЗАТРАТ (без НДС): ",null,null,null,{"$f":"F13+F14","v":0}]
[null,"НДС - 20%:",null,null,null,{"$f":"F15*0.2","v":0}]
[null,"ВСЕГО (с НДС):",null,null,null,{"$f":"F15+F16","v":0}]
[]
[null,null,"Наименование участника тендерных торгов "]
[null,null,"Подпись уполномоченного лица"]
[null,null,"ФИО уполномоченного лица "]
[null,null,"Должность уполномоченного лица "]

{"sheet":"ЛокСм-1АС","index":1,"n_rows":174,"n_cols":6,"rows_kept":174,"cut":false,"hidden":false,"merged":[[1,1,1,5],[165,2,165,4],[166,2,166,4],[2,1,2,3],[168,1,168,2],[7,1,7,3],[167,2,167,4]]}
[]
[null,"ТАБЛИЦА ЦЕН/ВЕДОМОСТЬ ОБЪЕМОВ РАБОТ на выполнение строительных работ по объекту: «Строительство беседки “Зеленый класс” закрытого типа, расположенной на территории УО «Республиканский центр экологии и краеведения» г. Минск ул. Макаенка 8»"]
[null,"ЛОКАЛЬНАЯ СМЕТА № 1 - на Общестроительные работы (AС)"]
[]
["№ П/П / ITEM","НАИМЕНОВАНИЕ РАБОТ, РЕСУРСОВ, РАСХОДОВ / NAME OF WORKS, RESOURCES, EXPENSES","ЕД. ИЗМ. ","  КОЛ-ВО ","СТОИМОСТЬ ЗА ЕДИНИЦУ, ___ ","ОБЩАЯ СТОИМОСТЬ, ___ "]
[1,"2",3,4,5,6]
[]
[null,"ПРИМЕЧАНИЕ: Ж2-10 ЗЕМЛЯНЫЕ РАБОТЫ"]
[1,"Разработка грунта вручную в траншеях глубиной до 2 м без креплений с откосами, грунт 2 группы ","100М3 ",0.26,null,{"$f":"E9*D9","v":0}]
[2,"Засыпка вручную траншей, пазух котлованов и ям, грунт 1 группы","100М3 ",0.10199999999999999,null,{"$f":"E10*D10","v":0}]
[3,"Уплотнение грунта пневматическими трамбовками, грунт 1-2 группы","100М3 уплот грунт ",0.10199999999999999,null,{"$f":"E11*D11","v":0}]
[null,"ИТОГО ПРЯМЫЕ ЗАТРАТЫ: ",null,null,null,{"$f":"SUM(F9:F11)","v":0}]
[null,"ОХР и ОПР:"]
[null,"ПЛАНОВАЯ ПРИБЫЛЬ :"]
[null,"ИТОГО по разделу: ",null,null,null,{"$f":"F12+F13+F14","v":0}]
[null,"ПРИМЕЧАНИЕ: Ж2-20 ФУНДАМЕНТЫ"]
[4,"Погружение (завинчивание) винтовых металлических свай диаметром до 203-300 мм с диаметром лопастей 800-850 мм на глубину до 4 м в грунтах 2 группы","м",28.8,null,{"$f":"E17*D17","v":0}]
[5,"Винтовые металлические сваи диаметром 108, длинной 1,8м","шт.",16,null,0]
[6,"Постановка болтов строительных с гайками и шайбами","100шт болтов",0.32,null,0]
[7,"Болты строительные с гайками и шайбами","Т",6.816E-3,null,0]
[8,"Установка элементов каркаса из брусьев","м3 древе-сины в конст",1.5,null,0]
[9,"Установка элементов каркаса из доски","м3 древе-сины в конст",5.2499999999999998E-2,null,0]
[10,"Антисептирование водными растворами за 2 раза стен","м3 древе-сины в конст",0.4,null,0]
[11,"Установка отливов из оцинкованной стали","100м",7.0000000000000007E-2,null,0]
[12,"Отлив оконный из стали оцинкованной толщиной 0,45-0,5 мм, шириной 180 мм, с двухсторонним полимерным покрытием","м",7,null,0]
[13,"Установка защитного экрана из оцинкованной стали","100м",0.21,null,0]
[14,"Защитный экран из стали оцинкованной толщиной 0,5 мм, с двухсторонним полимерным покрытием","м",21,null,0]
[null,"ИТОГО ПРЯМЫЕ ЗАТРАТЫ: ",null,null,null,{"$f":"SUM(F17:F27)","v":0}]
[null,"ОХР и ОПР:"]
[null,"ПЛАНОВАЯ ПРИБЫЛЬ :"]
[null,"ИТОГО по разделу: ",null,null,null,{"$f":"F28+F29+F30","v":0}]
[null,"ПРИМЕЧАНИЕ: Ж2-30 НАРУЖНЫЕ СТЕНЫ"]
[15,"Сборка стен из брусьев толщиной 180 мм","100м2 стен за вычето",1.0900000000000001,null,{"$f":"E33*D33","v":0}]
[16,"Полубрус обрезные хвойных пород длиной 2-3,75 м, шириной и толщиной 150 мм и более, 2 сорта","М3",26.67,null,{"$f":"E34*D34","v":0}]
[17,"Доски обрезные хвойных пород длиной 4-6,5 м, шириной 75-150 мм, толщиной 44 мм и более, 2 сорта","М3",0.45,null,{"$f":"E35*D35","v":0}]
[18,"Огнебиозащитная обработка деревянных конструкций после установки в проектное положение составом для обеспечения II группы огнезащитной эффективности, вручную","100м2 обрабатываемой",1.0900000000000001,null,{"$f":"E36*D36","v":0}]
[null,"ИТОГО ПРЯМЫЕ ЗАТРАТЫ: ",null,null,null,{"$f":"SUM(F33:F36)","v":0}]
[null,"ОХР и ОПР:"]
[null,"ПЛАНОВАЯ ПРИБЫЛЬ :"]
[null,"ИТОГО по разделу: ",null,null,null,{"$f":"F37+F38+F39","v":0}]
[null,"ПРИМЕЧАНИЕ: Ж2-40-20 ВНУТРЕННИЕ ОТДЕЛОЧНЫЕ РАБОТЫ"]
[19,"ПРИМЕЧАНИЕ:      Потолок"]
[20,"Обшивка каркасного потолка досками обшивки /прим./ ","100м2 обшивки стен",0.4451,null,{"$f":"E43*D43","v":0}]
[21,"Обшивка деревянная наружная и внутренняя тип О-1, О-2, О-3, толщиной 13 мм, шириной без гребня от 70 до 90 мм","М3",0.71199999999999997,null,0]
[22,"Устройство плинтусов деревянных","100М ",0.5,null,0]
[23,"Плинтус деревянный тип ПЛ-3, размером 25х25 мм","М",50.5,null,0]
[24,"Проолифка деревянных поверхностей потолков за 2 раза Кратность К=2","100М2 ",0.4451,null,0]
[25,"Покрытие потолков масляными и спиртовыми лаками по окрашиваемой или огрунтованной поверхности за 2 раза","100М2 ",0.4451,null,0]
[26,"ПРИМЕЧАНИЕ:      Стены"]
[27,"Проолифка деревянных поверхностей стен","100М2 ",1.07,null,{"$f":"E50*D50","v":0}]
[28,"Покрытие стен масляными и спиртовыми лаками по окрашиваемой или огрунтованной поверхности за 2 раза","100М2 ",1.07,null,{"$f":"E51*D51","v":0}]
[29,"ПРИМЕЧАНИЕ:      Пол"]
[30,"Устройство покрытий щебеночных с пропиткой битумом","100М2 ",0.4451,null,{"$f":"E53*D53","v":0}]
[31,"Устройство подстилающих слоев бетонных","М3",3.56,null,0]
[32,"Устройство тепло- и звукоизоляции сплошной из плит или матов минераловатных или стекловолокнистых","100М2 ",0.4451,null,0]
[33,"Плиты теплоизоляционные из экструдированного пенополистирола БАТЭПЛЕКС толщиной 20-100 мм","М3",4.5839999999999996,null,0]
[34,"Устройство цементно-песчаных стяжек толщиной 20 мм по основанию из утеплителя","100М2 ",0.4451,null,0]
[35,"Устройство цементно-песчаных стяжек: добавлять или исключать на каждые 5 мм изменения толщины стяжки","100М2 / 100M2",0.4451,null,0]
[36,"Устройство гидроизоляции обмазочной в один слой толщиной 2 мм","100М2 ",0.4451,null,0]
[37,"Гидроизоляционная смесь (ГС) с улучшенными свойствами, эластичная (Э), двухкомпонентная (2)","Т",7.8299999999999995E-2,null,0]
[38,"Устройство гидроизоляции обмазочной: на каждый последующий слой толщиной 1 мм добавлять по норме 5","100М2 ",0.4451,null,0]
[39,"Гидроизоляционная смесь (ГС) с улучшенными свойствами, эластичная (Э), двухкомпонентная (2)","Т",3.4720000000000001E-2,null,0]
[40,"Устройство цементно-песчаных стяжек толщиной 20 мм по основанию из утеплителя","100М2 ",0.4451,null,0]
[41,"Устройство покрытий пола из плитки керамической на клею по цементной стяжке","100М2 ",0.4451,null,0]
[42,"Плитки керамические для полов неглазурованные тип \"ГРЕС\" размером 300х300х8 мм","М2",45.622799999999998,null,0]
[43,"Вода","М3",0.45,null,0]
[null,"ИТОГО ПРЯМЫЕ ЗАТРАТЫ: ",null,null,null,{"$f":"SUM(F43:F66)","v":0}]
[null,"ОХР и ОПР:"]
[null,"ПЛАНОВАЯ ПРИБЫЛЬ :"]
[null,"ИТОГО по разделу: ",null,null,null,{"$f":"F67+F68+F69","v":0}]
[null,"ПРИМЕЧАНИЕ: Ж2-50 Перегородки"]
[44,"Устройство перегородок в жилых зданиях на металлическом однорядном каркасе с двухсторонней обшивкой гипсокартонными листами или гипсоволокнистыми плитами в один слой с изоляцией","100м2 перегородок за",3.7999999999999999E-2,null,{"$f":"E72*D72","v":0}]
[45,"Профиль для гипсокартона перегородочный UW (ПН) 75х40, 0,6 мм","М",7.6,null,{"$f":"E73*D73","v":0}]
[46,"Профиль для гипсокартона перегородочный CW (ПС) 75х50, 0,6 мм","М",25.8,null,{"$f":"E74*D74","v":0}]
[47,"Окраска стен поливинилацетатными водоэмульсионными составами по сборным конструкциям, подготовленным под окраску, улучшенная","100М2 ",3.7999999999999999E-2,null,{"$f":"E75*D75","v":0}]
[null,"ИТОГО ПРЯМЫЕ ЗАТРАТЫ: ",null,null,null,{"$f":"SUM(F72:F75)","v":0}]
[null,"ОХР и ОПР:"]
[null,"ПЛАНОВАЯ ПРИБЫЛЬ :"]
[null,"ИТОГО по разделу: ",null,null,null,{"$f":"F76+F77+F78","v":0}]
[null,"ПРИМЕЧАНИЕ: Ж2-40-60 ВНУТРЕННИЕ СТЕНЫ ПРОЕМЫ"]
[48,"Установка блоков в наружных и внутренних дверных проемах в перегородках и деревянных нерубленых стенах, площадь проема более 3 м2","100м2 проемов",7.1999999999999995E-2,null,{"$f":"E81*D81","v":0}]
[49,"Блок дверной наружный входной деревянный двупольный, глухой, с порогом, щитовой ДН Д Г 24-15 П Щ","М2",7.2,null,0]
[50,"Установка блоков в наружных и внутренних дверных проемах в перегородках и деревянных нерубленых стенах, площадь проема до 3 м2","100м2 проемов",1.89E-2,null,0]
[51,"Блок дверной внутренний санузлов деревянный, однопольный, глухой, с наплавом, с порогом, щитовой ДВ6 Д Г 21-9 Н П Щ","М2",1.89,null,0]
[52,"Установка в жилых и общественных зданиях блоков оконных с переплетами спаренными в стенах деревянных нерубленных, площадь проема более 2 м2","100м2 проемов",0.1537,null,0]
[53,"Блок оконный ОД 1460х1770 П/О И СП2","М2",2.58,null,0]
[54,"Блок оконный из поливинилхлоридного профиля BRUGMANN ОП А 1500-1500 П/О П/У СП2, с поворотно-откидным устройством, с поворотным устройством, с двухкамерным стеклопакетом","М2",12.79,null,0]
[55,"Доска подоконная окрашенная ПД-1, ПД-3, толщиной 34 мм, шириной 200 мм","М",11.5,null,0]
[56,"Установка отливов из оцинкованной стали","100М ",0.115,null,0]
[57,"Отлив оконный из стали оцинкованной толщиной 0,2-0,5 мм, шириной 165 мм, с полимерным покрытием ПЭП с одной стороны, окрашенный с другой стороны","М",11.5,null,0]
[58,"Установка и крепление наличников","100м коробок блоков",0.56000000000000005,null,0]
[59,"Наличник деревянный тип Н-1, размером 12х120","М",62.72,null,0]
[60,"Проолифка деревянных поверхностей стен","100М2 ",0.1232,null,0]
[61,"Покрытие стен масляными и спиртовыми лаками по окрашиваемой или огрунтованной поверхности за 2 раза","100М2",0.1232,null,0]
[null,"ИТОГО ПРЯМЫЕ ЗАТРАТЫ: ",null,null,null,{"$f":"SUM(F81:F94)","v":0}]
[null,"ОХР и ОПР:"]
[null,"ПЛАНОВАЯ ПРИБЫЛЬ :"]
[null,"ИТОГО по разделу: ",null,null,null,{"$f":"F95+F96+F97","v":0}]
[null,"ПРИМЕЧАНИЕ: Ж2-70 Кровли"]
[62,"Устройство несущего каркаса наслонной стропильной системы","10М3 ",0.1996,null,{"$f":"E100*D100","v":0}]
[63,"Брусья обрезные хвойных пород длиной 4-6,5 м, шириной 150мм, толщиной 150 мм и более, 2 сорта","М3",0.96,null,0]
[64,"Брусья обрезные хвойных пород длиной 4-6,5 м, шириной 150мм, толщиной 150 мм и более, 2 сорта (нарожники)","М3",0.28000000000000003,null,0]
[65,"Брусья обрезные хвойных пород длиной 4-6,5 м, шириной 150мм, толщиной 150 мм и более, 2 сорта (диагональные ноги)","М3",0.46,null,0]
[66,"Доски обрезные хвойных пород длиной 4-6,5 м, шириной 75-150 мм, толщиной 44 мм и более, 2 сорта (затяжки)","М3",0.19,null,0]
[67,"Доски обрезные хвойных пород длиной 4-6,5 м, шириной 75-150 мм, толщиной 44 мм и более, 3 сорта (накладки)","М3",9.4E-2,null,0]
[68,"Доски обрезные хвойных пород длиной 4-6,5 м, шириной 75-150 мм, толщиной 44 мм и более, 3 сорта (опорные бруски)","М3",1.2E-2,null,0]
[69,"Устройство обрешетки для наслонной стропильной системы","100м2 ската крыши",1.83,null,0]
[70,"Доски обрезные хвойных пород длиной 4-6,5 м, шириной 75-150 мм, толщиной 44 мм и более, 2 сорта","М3",0.2,null,0]
[71,"Доски обрезные хвойных пород длиной 4-6,5 м, шириной 75-150 мм, толщиной 32, 40 мм, 2 сорта","М3",1.28,null,0]
[72,"Доски обрезные хвойных пород длиной 4-6,5 м, шириной 75-150 мм, толщиной 44 мм и более, 2 сорта","М3",0.34,null,0]
[73,"Сталь арматурная горячекатаная гладкая для железобетонных конструкций, класса S240 (А240), диаметром 12 мм (Скоба Ск-1)","Т",2.792E-2,null,0]
[74,"Устройство каркаса карнизных свесов","100м2 развернутой по",0.09,null,0]
[75,"Доски обрезные хвойных пород длиной 4-6,5 м, шириной 75-150 мм, толщиной 44 мм и более, 2 сорта","М3",0.41,null,0]
[76,"Доски обрезные хвойных пород длиной 4-6,5 м, шириной 75-150 мм, толщиной 25 мм, 2 сорта","М3",0.28000000000000003,null,0]
[77,"Бруски обрезные хвойных пород длиной 2-6,5 м, толщиной 40-60 мм, 2 сорта","М3",0.08,null,0]
[78,"Доски обрезные хвойных пород длиной 4-6,5 м, шириной 75-150 мм, толщиной 25 мм, 2 сорта","М3",0.84,null,0]
[79,"Огнебиозащитная обработка деревянных конструкций после установки в проектное положение составом \"ЭК-1\" для обеспечения II группы огнезащитной эффективности, вручную","100м2 обрабатываемой",1.83,null,0]
[80,"Устройство кровель из листов профилированных с волновым и трапециевидным очертанием гофра","100М2 ",1.83,null,0]
[81,"Профилированный лист типа МОНТЕРРЕЙ (металлочерепица) толщиной 0,5 мм из оцинкованной стали с полимерным покрытием: полиэстер 25мкм","М2",183,null,0]
[82,"Установка коньковых планок для кровли из листов профилированных с волновым и трапециевидным очертанием гофра","100М ",0.34,null,0]
[83,"Планка конька","М",35.700000000000003,null,0]
[84,"Заглушка конька","ШТ",4,null,0]
[85,"Установка карнизной планки для кровли из листов профилированных с волновым и трапециевидным очертанием гофра","100М ",0.36,null,0]
[86,"Устройство ендов для кровли из листов профилированных с волновым и трапециевидным очертанием гофра","100М ",0.12,null,0]
[87,"Планка ендовы верхней 76х76х2000, 80х80х2000 (оцинкованная сталь 0,5 мм с полимерным покрытием полиэстер)","М / М",12.6,null,0]
[88,"Планка ендовы нижней 298х298х2000, 300х300х2000, 312х312х2000 (оцинкованная сталь 0,5 мм с полимерным покрытием полиэстер)","М",12.6,null,0]
[89,"Установка торцевых ветровых планок по фасаду для кровли из листов профилированных с волновым и трапециевидным очертанием гофра","100М ",0.12,null,0]
[null,"ИТОГО ПРЯМЫЕ ЗАТРАТЫ: ",null,null,null,{"$f":"SUM(F100:F127)","v":0}]
[null,"ОХР и ОПР:"]
[null,"ПЛАНОВАЯ ПРИБЫЛЬ :"]
[null,"ИТОГО по разделу: ",null,null,null,{"$f":"F128+F129+F130","v":0}]
[null,"ПРИМЕЧАНИЕ: Ж2-70 Кровли"]
[90,"Устройство перекрытий с укладкой балок по стенам рубленым с накатом из щитов","100м2 перекрытий",0.44,null,{"$f":"E133*D133","v":0}]
[91,"Поковки из квадратных заготовок массой 1,8 кг","Т",1.14E-2,null,0]
[92,"Плиты теплоизоляционные из минеральной ваты ПТМ СТБ 1995-2009-Т5-DS(TH)1-CS(10)60-TR15-PL(5)850-WS1 (плотность 160 кг/м3) БЕЛТЕП марки Руф 60","М3",5.28,null,0]
[93,"Щиты наката","М2",35.200000000000003,null,0]
[94,"Бруски обрезные хвойных пород длиной 4-6,5 м, шириной 75-150 мм, толщиной 40-75 мм, 2 сорта","М3",0.5,null,0]
[95,"Бруски обрезные хвойных пород длиной 4-6,5 м, шириной 75-150 мм, толщиной 40-75 мм, 2 сорта","М3",0.25,null,0]
[null,"ИТОГО ПРЯМЫЕ ЗАТРАТЫ: ",null,null,null,{"$f":"SUM(F133:F138)","v":0}]
[null,"ОХР и ОПР:"]
[null,"ПЛАНОВАЯ ПРИБЫЛЬ :"]
[null,"ИТОГО по разделу: ",null,null,null,{"$f":"F139+F140+F141","v":0}]
[null,"ПРИМЕЧАНИЕ: Ж2-90-20 Другие элементы и конструкции Входы. крыльца. рампы пандусы."]
[96,"Устройство песчаного основания под фундаменты","М3",5.7,null,{"$f":"E144*D144","v":0}]
[97,"Монтаж ограждения","Т",0.19841,null,0]
[98,"Отдельные конструктивные элементы зданий и сооружений (ограждение ОГ-1, ОГ-2, ОГ-3, ОГ-4) с преобладанием горячекатаных профилей. Средняя масса сборочной единицы до 0,1 т","Т",0.19839999999999999,null,0]
[99,"Огрунтовка металлических поверхностей за один раз грунтовкой ГФ-021","100М2 ",0.26,null,0]
[100,"Окраска металлических огрунтованных поверхностей эмалью ХВ-124 Кратность К=7 ","100М2",0.26,null,0]
[101,"Монтаж лестниц прямолинейных и криволинейных, пожарных с ограждением","Т",1.0629999999999999,null,0]
[102,"Отдельные конструктивные элементы зданий и сооружений с преобладанием гнутосварных профилей и круглых труб. Средняя масса сборочной единицы до 1,0 т","Т",1.0629999999999999,null,0]
[103,"Устройство крылец","м2 гори-зонтальной пр",3.43,null,0]
[104,"Доски обрезные хвойных пород длиной 4-6,5 м, шириной 75-150 мм, толщиной 25 мм, 2 сорта","м3",0.6,null,0]
[105,"Огрунтовка металлических поверхностей за один раз грунтовкой ГФ-021","100м2",0.15,null,0]
[106,"Окраска металлических огрунтованных поверхностей эмалью ХВ-124 Кратность К=7","100м2",0.15,null,0]
[107,"Установка опорных уголков","Т",1.324E-2,null,0]
[108,"Детали закладные, изготовленные без применения сварки, гнутья, сверления (пробивки) отверстий, поставляемые отдельно","Т",1.32E-2,null,0]
[109,"Установка металлических решеток приямков","Т",1.5169999999999999E-2,null,0]
[110,"Решетки для приямков стальные","Т",1.5169999999999999E-2,null,0]
[null,"ИТОГО ПРЯМЫЕ ЗАТРАТЫ: ",null,null,null,{"$f":"SUM(F144:F158)","v":0}]
[null,"ОХР и ОПР:"]
[null,"ПЛАНОВАЯ ПРИБЫЛЬ :"]
[null,"ИТОГО по разделу: ",null,null,null,{"$f":"F159+F160+F161","v":0}]
[]
[null,"ИТОГО ПРЯМЫЕ ЗАТРАТЫ: ",null,null,null,{"$f":"F12+F28+F37+F67+F76+F95+F128+F139+F159","v":0}]
[null,"ПРОЧИЕ ЗАТРАТЫ  и РАСХОДЫ (ОХР и ОПР, плановая прибыль, страхование,иные затраты): ",null,null,null,{"$f":"F166+F167","v":0}]
[null,"в том числе: ","ОХР и ОПР",null,null,{"$f":"F13+F29+F38+F68+F77+F96+F129+F140+F160","v":0}]
[null,"в том числе: ","Плановая прибыль",null,null,{"$f":"F14+F30+F39+F69+F78+F97+F130+F141+F161","v":0}]
[null,"в том числе: ","Страхование и иные затраты"]
[null,"ИТОГО  ПО ВЕДОМОСТИ: ",null,null,null,{"$f":"F164+F165","v":0}]
[]
[null,"Наименование участника тендерных торгов "]
[null,"Подпись уполномоченного лица "]
[null,"ФИО уполномоченного лица "]
[null,"Должность уполномоченного лица "]

{"sheet":"ЛокСм-2 ЭС","index":2,"n_rows":53,"n_cols":6,"rows_kept":53,"cut":false,"hidden":false,"merged":[[1,1,1,5],[44,2,44,4],[45,2,45,4],[47,1,47,2],[2,1,2,3],[7,1,7,3],[46,2,46,4]]}
[]
[null,"ТАБЛИЦА ЦЕН/ВЕДОМОСТЬ ОБЪЕМОВ РАБОТ на выполнение строительных работ по объекту:«Строительство беседки “Зеленый класс” закрытого типа, расположенной на территории УО «Республиканский центр экологии и краеведения» г. Минск ул. Макаенка 8»"]
[null,"ЛОКАЛЬНАЯ СМЕТА № 2 - на Электромонтажные работы (ЭС)"]
[]
["№ П/П / ITEM","НАИМЕНОВАНИЕ РАБОТ, РЕСУРСОВ, РАСХОДОВ / NAME OF WORKS, RESOURCES, EXPENSES","ЕД. ИЗМ. ","  КОЛ-ВО ","СТОИМОСТЬ ЗА ЕДИНИЦУ, ___ ","ОБЩАЯ СТОИМОСТЬ, ___ "]
[1,"2",3,4,5,6]
[]
[null,"ПРИМЕЧАНИЕ: Ж6-60 Сети электроснабжения ЭС"]
[1,"Щитки осветительные, устанавливаемые на стене распорными дюбелями, масса щитка 6кг (монтаж)","ШТ",1,null,{"$f":"E9*D9","v":0}]
[2,"Щиток для подключения","ШТ",1,null,0]
[3,"Кабели до 35 кВ в проложенных трубах, блоках и коробах, масса 1 м до 2кг (монтаж)","100м кабеля",0.68,null,0]
[4,"Кабель силовой марки ВВГнг с медными жилами, изоляция и оболочка из поливинилхлоридного пластиката пониженной горючести, без защитного покрова, с двумя жилами сечением 1,5 мм2, на напряжение 0,66 кВ","1000М ",1.0200000000000001E-2,null,0]
[5,"Кабель силовой марки ВВГнг с медными жилами, изоляция и оболочка из поливинилхлоридного пластиката пониженной горючести, без защитного покрова, с тремя жилами сечением 1,5 мм2, на напряжение 0,66 кВ","1000М ",5.0999999999999997E-2,null,0]
[6,"Кабель силовой марки ВВГнг с медными жилами, изоляция и оболочка из поливинилхлоридного пластиката пониженной горючести, без защитного покрова, с двумя жилами сечением 16 мм2, на напряжение 0,66 кВ  ","1000М ",8.1600000000000006E-3,null,0]
[7,"Светильник с люминесцентными лампами, отдельно устанавливаемый на распорных дюбелях, количество ламп в светильнике 1  (монтаж)","100ШТ",0.09,null,0]
[8,"Светильник с лампами накаливания потолочный для общественных помещений НПО 13-60-801 ","ШТ",9,null,0]
[9,"Розетка штепсельная полугерметическая и герметическая с креплением на распорный дюбель (монтаж)","100ШТ",0.01,null,0]
[10,"Розетка штепсельная двухместная для открытой установки РА16-238","ШТ",1,null,0]
[11,"Выключатель одноклавишный неутопленного типа при открытой проводке (монтаж)","100ШТ",0.03,null,0]
[12,"Выключатель одноклавишный брызгозащищенный С110-817","ШТ",3,null,0]
[13,"Трубы стальные по установленным конструкциям по стенам с креплением скобами, диаметр до 25мм, крепление пристрелкой (монтаж)","100М ",0.3,null,0]
[14,"Трубы стальные электросварные прямошовные из спокойной и полуспокойной стали марок Ст2, Ст3, 10, 20, наружным диаметром 20 мм, толщиной стенки 1,2 мм","М / М",30.6,null,0]
[15,"Трубы стальные по установленным конструкциям по стенам с креплением скобами, диаметр до 40мм, крепление пристрелкой  (монтаж)","100М ",0.08,null,0]
[16,"Трубы стальные электросварные прямошовные из спокойной и полуспокойной стали марок Ст2, Ст3, 10, 20, наружным диаметром 32 мм, толщиной стенки 1,5 мм","М ",8.16,null,0]
[17,"Коробка монтажная К-201 ","ШТ",5,null,0]
[18,"Монтаж ","ШТ",6,null,0]
[19,"Солнечная панель 12V 250Вт","ШТ",3,null,0]
[20,"Контроллер солнечных панелей","ШТ",1,null,0]
[21,"Источник бесперебойного питания 400Ач","ШТ",1,null,0]
[22,"Инвертор 12V/230V ","ШТ",1,null,0]
[null,"ИТОГО ПРЯМЫЕ ЗАТРАТЫ: ",null,null,null,{"$f":"SUM(F9:F30)","v":0}]
[null,"ОХР и ОПР:"]
[null,"ПЛАНОВАЯ ПРИБЫЛЬ :"]
[null,"ИТОГО по разделу: ",null,null,null,{"$f":"F31+F32+F33","v":0}]
[null,"ПРИМЕЧАНИЕ: Ж6-90 Уравнивание потенциалов"]
[23,"Проводник заземляющий из полосовой стали сечением 100мм2, открыто по строительным основаниям (монтаж)","100М ",0.15,null,{"$f":"E36*D36","v":0}]
[24,"Проводник заземляющий из круглой стали диаметром 12мм, открыто по строительным основаниям  (монтаж)","100М ",0.02,null,{"$f":"E37*D37","v":0}]
[null,"ИТОГО ПРЯМЫЕ ЗАТРАТЫ: ",null,null,null,{"$f":"SUM(F36:F37)","v":0}]
[null,"ОХР и ОПР:"]
[null,"ПЛАНОВАЯ ПРИБЫЛЬ :"]
[null,"ИТОГО по разделу: ",null,null,null,{"$f":"F38+F39+F40","v":0}]
[]
[null,"ИТОГО ПРЯМЫЕ ЗАТРАТЫ: ",null,null,null,{"$f":"F31+F38","v":0}]
[null,"ПРОЧИЕ ЗАТРАТЫ  и РАСХОДЫ (ОХР и ОПР, плановая прибыль, страхование,иные затраты): ",null,null,null,{"$f":"F45+F46","v":0}]
[null,"в том числе:  ","ОХР и ОПР",null,null,{"$f":"F32+F39","v":0}]
[null,"в том числе:  ","Плановая прибыль",null,null,{"$f":"F33+F40","v":0}]
[null,"в том числе:  ","Страхование и иные затраты"]
[null,"ИТОГО ПО ВЕДОМОСТИ: ",null,null,null,{"$f":"F43+F44","v":0}]
[]
[null,"Наименование участника тендерных торгов "]
[null,"Подпись уполномоченного лица "]
[null,"ФИО уполномоченного лица "]
[null,"Должность уполномоченного лица "]

{"sheet":"ЛокСм-3 ГП","index":3,"n_rows":33,"n_cols":6,"rows_kept":33,"cut":false,"hidden":false,"merged":[[1,1,1,5],[24,2,24,4],[25,2,25,4],[27,1,27,2],[2,1,2,3],[7,1,7,3],[26,2,26,4]]}
[]
[null,"ТАБЛИЦА ЦЕН/ВЕДОМОСТЬ ОБЪЕМОВ РАБОТ на выполнение строительных работ по объекту: «Строительство беседки “Зеленый класс” закрытого типа, расположенной на территории УО «Республиканский центр экологии и краеведения» г. Минск ул. Макаенка 8»"]
[null,"ЛОКАЛЬНАЯ СМЕТА № 3 - на Благоустройство (ГП)"]
[]
["№ П/П / ITEM","НАИМЕНОВАНИЕ РАБОТ, РЕСУРСОВ, РАСХОДОВ","ЕД. ИЗМ. ","  КОЛ-ВО ","СТОИМОСТЬ ЗА ЕДИНИЦУ, ___ ","ОБЩАЯ СТОИМОСТЬ, ___ "]
[1,"2",3,4,5,6]
[]
[null,"ПРИМЕЧАНИЕ: Ж7 БЛАГОУСТРОЙСТВО И ОЗЕЛЕНЕНИЕ"]
[1,"Разработка грунта бульдозерами мощностью 59 (80) кВт (л.с.) при перемещении грунта до 10 м, грунт 1 группы - срезка растительного слоя грунта","1000м3  ",9.4999999999999998E-3,null,{"$f":"E9*D9","v":0}]
[2,"Разборка бортовых камней на бетонном основании","100М ",0.06,null,{"$f":"E10*D10","v":0}]
[3,"ПРИМЕЧАНИЕ: ПО  ТИП 1  "]
[4,"Устройство подстилающих и выравнивающих слоев оснований из песка","100м3 ",7.8899999999999998E-2,null,{"$f":"E12*D12","v":0}]
[5,"Песок для строительных работ природный 1 класса","М3 ",8.6790000000000003,null,0]
[6,"Устройство сборных покрытий из плит тротуарных с наибольшим габаритным размером в плане до 300 мм включительно с подачей плит вручную","100м2 ",0.26300000000000001,null,0]
[7,"Плиты тротуарные, мелкоразмерные, серые, толщиной 60 мм, из бетона М300","М2 ",26.826000000000001,null,0]
[8,"Установка бортовых камней бетонных при других видах покрытий","100М ",0.24,null,0]
[9,"КАМЕНЬ БОРТОВОЙ БРТ100.20.8 Серия Б3.020.1-1.99 вып.1","ШТ",24,null,0]
[null,"ИТОГО ПРЯМЫЕ ЗАТРАТЫ: ",null,null,null,{"$f":"SUM(F9:F17)","v":0}]
[null,"ОХР и ОПР:"]
[null,"ПЛАНОВАЯ ПРИБЫЛЬ :"]
[null,"ИТОГО по разделу: ",null,null,null,{"$f":"F18+F19+F20","v":0}]
[]
[null,"ИТОГО ПРЯМЫЕ ЗАТРАТЫ: ",null,null,null,{"$f":"F18","v":0}]
[null,"ПРОЧИЕ ЗАТРАТЫ  и РАСХОДЫ (ОХР и ОПР, плановая прибыль, страхование,иные затраты): ",null,null,null,{"$f":"F25+F26","v":0}]
[null,"в том числе: ","ОХР и ОПР",null,null,{"$f":"F19","v":0}]
[null,"в том числе: ","Плановая прибыль",null,null,{"$f":"F20","v":0}]
[null,"в том числе: ","Страхование и иные затраты"]
[null,"ИТОГО  ПО ВЕДОМОСТИ: ",null,null,null,{"$f":"F23+F24","v":0}]
[]
[null,"Наименование участника тендерных торгов "]
[null,"Подпись уполномоченного лица "]
[null,"ФИО уполномоченного лица "]
[null,"Должность уполномоченного лица "]